{"text_format":"1","workbook":"xlsx","n_sheets":2,"sheets":["Input busta paga","modello_busta paga"],"not_rendered":{"charts":0,"images":0,"macros":1,"external_links":0,"defined_names":7,"comments":0,"pivot_tables":0},"unopened":[],"bounds":{"document_bytes":16777216,"sheet_cells":100000,"rows_first":2000,"rows_last":500,"rows_between":2000,"halvings":0,"cell_chars":16384,"cell_head_chars":4096},"cells_cut":0,"cells_raw":0,"read":"whole","date_system":"1900"}

{"sheet":"Input busta paga","index":0,"n_rows":13,"n_cols":24,"rows_kept":13,"cut":false,"hidden":false,"merged":[]}
[null,"CALCOLATORE BUSTA PAGA",null,null,null,null,null,null,null,null,"FINE PERIODO:",41372,null,"NOME AZIENDA:",null,"ADVENTURE WORKS"]
[]
[null,"ID","Nome dell'impiegato","Ore regolari lavorate","Ore di permesso ferie","Ore di permesso malattia","Ore straordinario","Tariffa straordinario","Paga lorda","Imposte e trattenute","Altre tratt.","Importo netto corrisposto"," ","Paga oraria","Stato fiscale","Benefici federali","Imposta statale","Imposte federali sul reddito","Ritenute previdenziali","Imposta per l'assicurazione medica","Totale imposte trattenute","Trattenute assicurative","Altre trattenute regolari","Totale trattenute regolari"]
[null,1001,"Tony Smith",50,5,1,null,null,{"$f":"SUM(Impiegati[[#This Row],[Ore regolari lavorate]:[Ore di permesso malattia]])*Impiegati[[#This Row],[Paga oraria]]+Impiegati[[#This Row],[Ore straordinario]]*Impiegati[[#This Row],[Tariffa straordinario]]","v":560},{"$f":"Impiegati[[#This Row],[Paga lorda]]*Impiegati[[#This Row],[Totale imposte trattenute]] + Impiegati[[#This Row],[Totale trattenute regolari]]","v":273.08000000000004},20,{"$f":"Impiegati[[#This Row],[Paga lorda]]-Impiegati[[#This Row],[Imposte e trattenute]]-Impiegati[[#This Row],[Altre tratt.]]","v":266.91999999999996},null,10,1,4,2.3E-2,0.28000000000000003,6.3E-2,1.4500000000000001E-2,{"$f":"SUM(Impiegati[[#This Row],[Imposta statale]:[Imposta per l''assicurazione medica]])","v":0.38050000000000006},20,40,{"$f":"SUM(Impiegati[[#This Row],[Trattenute assicurative]:[Altre trattenute regolari]])","v":60}]
[null,1002,"David Jones",40,null,null,null,null,{"$f":"SUM(Impiegati[[#This Row],[Ore regolari lavorate]:[Ore di permesso malattia]])*Impiegati[[#This Row],[Paga oraria]]+Impiegati[[#This Row],[Ore straordinario]]*Impiegati[[#This Row],[Tariffa straordinario]]","v":320},{"$f":"Impiegati[[#This Row],[Paga lorda]]*Impiegati[[#This Row],[Totale imposte trattenute]] + Impiegati[[#This Row],[Totale trattenute regolari]]","v":131.76000000000002},null,{"$f":"Impiegati[[#This Row],[Paga lorda]]-Impiegati[[#This Row],[Imposte e trattenute]]-Impiegati[[#This Row],[Altre tratt.]]","v":188.23999999999998},null,8,1,1,2.3E-2,0.28000000000000003,6.3E-2,1.4500000000000001E-2,{"$f":"SUM(Impiegati[[#This Row],[Imposta statale]:[Imposta per l''assicurazione medica]])","v":0.38050000000000006},0,10,{"$f":"SUM(Impiegati[[#This Row],[Trattenute assicurative]:[Altre trattenute regolari]])","v":10}]
[null,1003,"Denise Smith",35,3,null,null,null,{"$f":"SUM(Impiegati[[#This Row],[Ore regolari lavorate]:[Ore di permesso malattia]])*Impiegati[[#This Row],[Paga oraria]]+Impiegati[[#This Row],[Ore straordinario]]*Impiegati[[#This Row],[Tariffa straordinario]]","v":532},{"$f":"Impiegati[[#This Row],[Paga lorda]]*Impiegati[[#This Row],[Totale imposte trattenute]] + Impiegati[[#This Row],[Totale trattenute regolari]]","v":240.42600000000004},null,{"$f":"Impiegati[[#This Row],[Paga lorda]]-Impiegati[[#This Row],[Imposte e trattenute]]-Impiegati[[#This Row],[Altre tratt.]]","v":291.57399999999996},null,14,1,3,2.3E-2,0.28000000000000003,6.3E-2,1.4500000000000001E-2,{"$f":"SUM(Impiegati[[#This Row],[Imposta statale]:[Imposta per l''assicurazione medica]])","v":0.38050000000000006},18,20,{"$f":"SUM(Impiegati[[#This Row],[Trattenute assicurative]:[Altre trattenute regolari]])","v":38}]
[null,1008,"Sebastien Motte",50,5,1,null,null,{"$f":"SUM(Impiegati[[#This Row],[Ore regolari lavorate]:[Ore di permesso malattia]])*Impiegati[[#This Row],[Paga oraria]]+Impiegati[[#This Row],[Ore straordinario]]*Impiegati[[#This Row],[Tariffa straordinario]]","v":1120},{"$f":"Impiegati[[#This Row],[Paga lorda]]*Impiegati[[#This Row],[Totale imposte trattenute]] + Impiegati[[#This Row],[Totale trattenute regolari]]","v":441.16000000000008},null,{"$f":"Impiegati[[#This Row],[Paga lorda]]-Impiegati[[#This Row],[Imposte e trattenute]]-Impiegati[[#This Row],[Altre tratt.]]","v":678.83999999999992},null,20,1,0,2.3E-2,0.28000000000000003,6.3E-2,1.4500000000000001E-2,{"$f":"SUM(Impiegati[[#This Row],[Imposta statale]:[Imposta per l''assicurazione medica]])","v":0.38050000000000006},15,null,{"$f":"SUM(Impiegati[[#This Row],[Trattenute assicurative]:[Altre trattenute regolari]])","v":15}]
[null,1011,"Isabelle Scemla",40,null,null,2,15,{"$f":"SUM(Impiegati[[#This Row],[Ore regolari lavorate]:[Ore di permesso malattia]])*Impiegati[[#This Row],[Paga oraria]]+Impiegati[[#This Row],[Ore straordinario]]*Impiegati[[#This Row],[Tariffa straordinario]]","v":430},{"$f":"Impiegati[[#This Row],[Paga lorda]]*Impiegati[[#This Row],[Totale imposte trattenute]] + Impiegati[[#This Row],[Totale trattenute regolari]]","v":223.61500000000004},null,{"$f":"Impiegati[[#This Row],[Paga lorda]]-Impiegati[[#This Row],[Imposte e trattenute]]-Impiegati[[#This Row],[Altre tratt.]]","v":206.38499999999996},null,10,1,0,2.3E-2,0.28000000000000003,6.3E-2,1.4500000000000001E-2,{"$f":"SUM(Impiegati[[#This Row],[Imposta statale]:[Imposta per l''assicurazione medica]])","v":0.38050000000000006},20,40,{"$f":"SUM(Impiegati[[#This Row],[Trattenute assicurative]:[Altre trattenute regolari]])","v":60}]
[null,1012,"David Bristol",40,5,1,null,null,{"$f":"SUM(Impiegati[[#This Row],[Ore regolari lavorate]:[Ore di permesso malattia]])*Impiegati[[#This Row],[Paga oraria]]+Impiegati[[#This Row],[Ore straordinario]]*Impiegati[[#This Row],[Tariffa straordinario]]","v":552},{"$f":"Impiegati[[#This Row],[Paga lorda]]*Impiegati[[#This Row],[Totale imposte trattenute]] + Impiegati[[#This Row],[Totale trattenute regolari]]","v":270.03600000000006},null,{"$f":"Impiegati[[#This Row],[Paga lorda]]-Impiegati[[#This Row],[Imposte e trattenute]]-Impiegati[[#This Row],[Altre tratt.]]","v":281.96399999999994},null,12,1,4,2.3E-2,0.28000000000000003,6.3E-2,1.4500000000000001E-2,{"$f":"SUM(Impiegati[[#This Row],[Imposta statale]:[Imposta per l''assicurazione medica]])","v":0.38050000000000006},20,40,{"$f":"SUM(Impiegati[[#This Row],[Trattenute assicurative]:[Altre trattenute regolari]])","v":60}]
[null,1025,"Anne Weiler",36,null,2,1,18,{"$f":"SUM(Impiegati[[#This Row],[Ore regolari lavorate]:[Ore di permesso malattia]])*Impiegati[[#This Row],[Paga oraria]]+Impiegati[[#This Row],[Ore straordinario]]*Impiegati[[#This Row],[Tariffa straordinario]]","v":474},{"$f":"Impiegati[[#This Row],[Paga lorda]]*Impiegati[[#This Row],[Totale imposte trattenute]] + Impiegati[[#This Row],[Totale trattenute regolari]]","v":225.35700000000003},25,{"$f":"Impiegati[[#This Row],[Paga lorda]]-Impiegati[[#This Row],[Imposte e trattenute]]-Impiegati[[#This Row],[Altre tratt.]]","v":223.64299999999997},null,12,1,2,2.3E-2,0.28000000000000003,6.3E-2,1.4500000000000001E-2,{"$f":"SUM(Impiegati[[#This Row],[Imposta statale]:[Imposta per l''assicurazione medica]])","v":0.38050000000000006},25,20,{"$f":"SUM(Impiegati[[#This Row],[Trattenute assicurative]:[Altre trattenute regolari]])","v":45}]
[null,1032,"Luka Abrus",40,5,1,null,null,{"$f":"SUM(Impiegati[[#This Row],[Ore regolari lavorate]:[Ore di permesso malattia]])*Impiegati[[#This Row],[Paga oraria]]+Impiegati[[#This Row],[Ore straordinario]]*Impiegati[[#This Row],[Tariffa straordinario]]","v":460},{"$f":"Impiegati[[#This Row],[Paga lorda]]*Impiegati[[#This Row],[Totale imposte trattenute]] + Impiegati[[#This Row],[Totale trattenute regolari]]","v":175.03000000000003},50,{"$f":"Impiegati[[#This Row],[Paga lorda]]-Impiegati[[#This Row],[Imposte e trattenute]]-Impiegati[[#This Row],[Altre tratt.]]","v":234.96999999999997},null,10,1,3,2.3E-2,0.28000000000000003,6.3E-2,1.4500000000000001E-2,{"$f":"SUM(Impiegati[[#This Row],[Imposta statale]:[Imposta per l''assicurazione medica]])","v":0.38050000000000006},null,null,{"$f":"SUM(Impiegati[[#This Row],[Trattenute assicurative]:[Altre trattenute regolari]])","v":0}]
[null,1049,"David Ludwig",40,1,null,null,null,{"$f":"SUM(Impiegati[[#This Row],[Ore regolari lavorate]:[Ore di permesso malattia]])*Impiegati[[#This Row],[Paga oraria]]+Impiegati[[#This Row],[Ore straordinario]]*Impiegati[[#This Row],[Tariffa straordinario]]","v":615},{"$f":"Impiegati[[#This Row],[Paga lorda]]*Impiegati[[#This Row],[Totale imposte trattenute]] + Impiegati[[#This Row],[Totale trattenute regolari]]","v":259.00750000000005},23,{"$f":"Impiegati[[#This Row],[Paga lorda]]-Impiegati[[#This Row],[Imposte e trattenute]]-Impiegati[[#This Row],[Altre tratt.]]","v":332.99249999999995},null,15,1,2,2.3E-2,0.28000000000000003,6.3E-2,1.4500000000000001E-2,{"$f":"SUM(Impiegati[[#This Row],[Imposta statale]:[Imposta per l''assicurazione medica]])","v":0.38050000000000006},25,null,{"$f":"SUM(Impiegati[[#This Row],[Trattenute assicurative]:[Altre trattenute regolari]])","v":25}]
[null,"Totale",{"$f":"SUBTOTAL(103,Impiegati[Nome dell''impiegato])","v":9},{"$f":"SUBTOTAL(109,Impiegati[Ore regolari lavorate])","v":371},{"$f":"SUBTOTAL(109,Impiegati[Ore di permesso ferie])","v":24},{"$f":"SUBTOTAL(109,Impiegati[Ore di permesso malattia])","v":6},{"$f":"SUBTOTAL(109,Impiegati[Ore straordinario])","v":3},null,{"$f":"SUBTOTAL(109,Impiegati[Paga lorda])","v":5063},{"$f":"SUBTOTAL(109,Impiegati[Imposte e trattenute])","v":2239.4715000000001},{"$f":"SUBTOTAL(109,Impiegati[Altre tratt.])","v":118},{"$f":"SUBTOTAL(109,Impiegati[Importo netto corrisposto])","v":2705.5284999999994},null,null,null,null,null,null,null,null,null,{"$f":"SUBTOTAL(109,Impiegati[Trattenute assicurative])","v":143},{"$f":"SUBTOTAL(109,Impiegati[Altre trattenute regolari])","v":170},{"$f":"SUBTOTAL(109,Impiegati[Totale trattenute regolari])","v":313}]

{"sheet":"modello_busta paga","index":1,"n_rows":47,"n_cols":13,"rows_kept":47,"cut":false,"hidden":true,"merged":[[45,2,45,3],[32,2,32,3],[33,2,33,3],[20,2,20,3],[21,2,21,3],[2,3,2,4],[14,3,14,4],[26,3,26,4],[38,3,38,4],[44,2,44,3],[8,2,8,3],[9,2,9,3],[2,7,2,8],[14,7,14,8],[26,7,26,8],[38,7,38,8],[38,11,38,12],[26,11,26,12],[14,11,14,12],[2,11,2,12]]}
[]
[null,null,{"$f":"NomeSocietà","v":"ADVENTURE WORKS"}]
[null,null,"PERIODO",{"$f":"FinePeriodo","v":41372},null,null,"NOME",{"$f":"IFERROR(INDEX(Impiegati[Nome dell''impiegato],BustaPaga),\"\")","v":"Tony Smith"},null,null,"ID IMPIEGATO",{"$f":"IFERROR(INDEX(Impiegati[ID],BustaPaga),\"\")","v":1001}]
[null,null,"Stato fiscale",null,{"$f":"IFERROR(INDEX(Impiegati[Stato fiscale],BustaPaga),\"\")","v":1},null,"Benefici federali (da W-4)",null,{"$f":"IFERROR(INDEX(Impiegati[Benefici federali],BustaPaga),\"\")","v":4},null,"Ore lavorate",null,{"$f":"IFERROR(INDEX(Impiegati[Ore regolari lavorate],BustaPaga),\"\")","v":50}]
[null,null,"Tariffa oraria",null,{"$f":"IFERROR(INDEX(Impiegati[Paga oraria],BustaPaga),\"\")","v":10},null,"Tariffa straordinario",null,{"$f":"IFERROR(INDEX(Impiegati[Tariffa straordinario],BustaPaga),\"\")","v":0},null,"Ore di permesso malattia",null,{"$f":"IFERROR(INDEX(Impiegati[Ore di permesso malattia],BustaPaga),\"\")","v":1}]
[null,null,"Ritenute previdenziali",null,{"$f":"IFERROR(INDEX(Impiegati[Ritenute previdenziali],BustaPaga)  *  INDEX(Impiegati[Paga lorda],BustaPaga),\"\")","v":35.28},null,"Imposte federali sul reddito ",null,{"$f":"IFERROR(INDEX(Impiegati[Imposte federali sul reddito],BustaPaga)  *  INDEX(Impiegati[Paga lorda],BustaPaga),\"\")","v":156.80000000000001},null,"Ore di permesso ferie",null,{"$f":"IFERROR(INDEX(Impiegati[Ore di permesso ferie],BustaPaga),\"\")","v":5}]
[null,null,"Imposta per l'assicurazione medica ",null,{"$f":"IFERROR(INDEX(Impiegati[Imposta per l''assicurazione medica],BustaPaga)  *  INDEX(Impiegati[Paga lorda],BustaPaga),\"\")","v":8.120000000000001},null,"Imposta statale ",null,{"$f":"IFERROR(INDEX(Impiegati[Imposta statale],BustaPaga)  *  INDEX(Impiegati[Paga lorda],BustaPaga),\"\")","v":12.879999999999999},null,"Ore straordinario",null,{"$f":"IFERROR(INDEX(Impiegati[Ore straordinario],BustaPaga),\"\")","v":0}]
[null,null,"Trattenute assicurative",null,{"$f":"IFERROR(INDEX(Impiegati[Trattenute assicurative],BustaPaga),\"\")","v":20},null,"Altre trattenute regolari",null,{"$f":"IFERROR(INDEX(Impiegati[Altre trattenute regolari],BustaPaga),\"\")","v":40},null,"Paga lorda",null,{"$f":"IFERROR(INDEX(Impiegati[Paga lorda],BustaPaga),\"\")","v":560}]
[null,null,"Totale imposte e",null,{"$f":"IFERROR(INDEX(Impiegati[Imposte e trattenute],BustaPaga),\"\")","v":273.08000000000004},null,"Altre trattenute",null,{"$f":"IFERROR(INDEX(Impiegati[Altre tratt.],BustaPaga),\"\")","v":20},null,"Totale imposte e trattenute ",null,{"$f":"IFERROR(INDEX(Impiegati[Imposte e trattenute],BustaPaga)  +  INDEX(Impiegati[Altre tratt.],BustaPaga),\"\")","v":293.08000000000004}]
[null,null,"trattenute regolari "]
[null,null,null,null,null,null,null,null,null,null,"Importo netto corrisposto",null,{"$f":"IFERROR(INDEX(Impiegati[Importo netto corrisposto],BustaPaga),\"\")","v":266.91999999999996}]
[]
[]
[null,null,{"$f":"NomeSocietà","v":"ADVENTURE WORKS"}]
[null,null,"PERIODO",{"$f":"FinePeriodo","v":41372},null,null,"NOME",{"$f":"IFERROR(INDEX(Impiegati[Nome dell''impiegato],BustaPaga),\"\")","v":"David Jones"},null,null,"ID IMPIEGATO",{"$f":"IFERROR(INDEX(Impiegati[ID],BustaPaga),\"\")","v":1002}]
[null,null,"Stato fiscale",null,{"$f":"IFERROR(INDEX(Impiegati[Stato fiscale],BustaPaga),\"\")","v":1},null,"Benefici federali (da W-4)",null,{"$f":"IFERROR(INDEX(Impiegati[Benefici federali],BustaPaga),\"\")","v":1},null,"Ore lavorate",null,{"$f":"IFERROR(INDEX(Impiegati[Ore regolari lavorate],BustaPaga),\"\")","v":40}]
[null,null,"Tariffa oraria",null,{"$f":"IFERROR(INDEX(Impiegati[Paga oraria],BustaPaga),\"\")","v":8},null,"Tariffa straordinario",null,{"$f":"IFERROR(INDEX(Impiegati[Tariffa straordinario],BustaPaga),\"\")","v":0},null,"Ore di permesso malattia",null,{"$f":"IFERROR(INDEX(Impiegati[Ore di permesso malattia],BustaPaga),\"\")","v":0}]
[null,null,"Ritenute previdenziali",null,{"$f":"IFERROR(INDEX(Impiegati[Ritenute previdenziali],BustaPaga)  *  INDEX(Impiegati[Paga lorda],BustaPaga),\"\")","v":20.16},null,"Imposte federali sul reddito ",null,{"$f":"IFERROR(INDEX(Impiegati[Imposte federali sul reddito],BustaPaga)  *  INDEX(Impiegati[Paga lorda],BustaPaga),\"\")","v":89.600000000000009},null,"Ore di permesso ferie",null,{"$f":"IFERROR(INDEX(Impiegati[Ore di permesso ferie],BustaPaga),\"\")","v":0}]
[null,null,"Imposta per l'assicurazione medica ",null,{"$f":"IFERROR(INDEX(Impiegati[Imposta per l''assicurazione medica],BustaPaga)  *  INDEX(Impiegati[Paga lorda],BustaPaga),\"\")","v":4.6400000000000006},null,"Imposta statale ",null,{"$f":"IFERROR(INDEX(Impiegati[Imposta statale],BustaPaga)  *  INDEX(Impiegati[Paga lorda],BustaPaga),\"\")","v":7.3599999999999994},null,"Ore straordinario",null,{"$f":"IFERROR(INDEX(Impiegati[Ore straordinario],BustaPaga),\"\")","v":0}]
[null,null,"Trattenute assicurative",null,{"$f":"IFERROR(INDEX(Impiegati[Trattenute assicurative],BustaPaga),\"\")","v":0},null,"Altre trattenute regolari",null,{"$f":"IFERROR(INDEX(Impiegati[Altre trattenute regolari],BustaPaga),\"\")","v":10},null,"Paga lorda",null,{"$f":"IFERROR(INDEX(Impiegati[Paga lorda],BustaPaga),\"\")","v":320}]
[null,null,"Totale imposte e",null,{"$f":"IFERROR(INDEX(Impiegati[Imposte e trattenute],BustaPaga),\"\")","v":131.76000000000002},null,"Altre trattenute",null,{"$f":"IFERROR(INDEX(Impiegati[Altre tratt.],BustaPaga),\"\")","v":0},null,"Totale imposte e trattenute ",null,{"$f":"IFERROR(INDEX(Impiegati[Imposte e trattenute],BustaPaga)  +  INDEX(Impiegati[Altre tratt.],BustaPaga),\"\")","v":131.76000000000002}]
[null,null,"trattenute regolari "]
[null,null,null,null,null,null,null,null,null,null,"Importo netto corrisposto",null,{"$f":"IFERROR(INDEX(Impiegati[Importo netto corrisposto],BustaPaga),\"\")","v":188.23999999999998}]
[]
[]
[null,null,{"$f":"NomeSocietà","v":"ADVENTURE WORKS"}]
[null,null,"PERIODO",{"$f":"FinePeriodo","v":41372},null,null,"NOME",{"$f":"IFERROR(INDEX(Impiegati[Nome dell''impiegato],BustaPaga),\"\")","v":"Denise Smith"},null,null,"ID IMPIEGATO",{"$f":"IFERROR(INDEX(Impiegati[ID],BustaPaga),\"\")","v":1003}]
[null,null,"Stato fiscale",null,{"$f":"IFERROR(INDEX(Impiegati[Stato fiscale],BustaPaga),\"\")","v":1},null,"Benefici federali (da W-4)",null,{"$f":"IFERROR(INDEX(Impiegati[Benefici federali],BustaPaga),\"\")","v":3},null,"Ore lavorate",null,{"$f":"IFERROR(INDEX(Impiegati[Ore regolari lavorate],BustaPaga),\"\")","v":35}]
[null,null,"Tariffa oraria",null,{"$f":"IFERROR(INDEX(Impiegati[Paga oraria],BustaPaga),\"\")","v":14},null,"Tariffa straordinario",null,{"$f":"IFERROR(INDEX(Impiegati[Tariffa straordinario],BustaPaga),\"\")","v":0},null,"Ore di permesso malattia",null,{"$f":"IFERROR(INDEX(Impiegati[Ore di permesso malattia],BustaPaga),\"\")","v":0}]
[null,null,"Ritenute previdenziali",null,{"$f":"IFERROR(INDEX(Impiegati[Ritenute previdenziali],BustaPaga)  *  INDEX(Impiegati[Paga lorda],BustaPaga),\"\")","v":33.515999999999998},null,"Imposte federali sul reddito ",null,{"$f":"IFERROR(INDEX(Impiegati[Imposte federali sul reddito],BustaPaga)  *  INDEX(Impiegati[Paga lorda],BustaPaga),\"\")","v":148.96},null,"Ore di permesso ferie",null,{"$f":"IFERROR(INDEX(Impiegati[Ore di permesso ferie],BustaPaga),\"\")","v":3}]
[null,null,"Imposta per l'assicurazione medica ",null,{"$f":"IFERROR(INDEX(Impiegati[Imposta per l''assicurazione medica],BustaPaga)  *  INDEX(Impiegati[Paga lorda],BustaPaga),\"\")","v":7.7140000000000004},null,"Imposta statale ",null,{"$f":"IFERROR(INDEX(Impiegati[Imposta statale],BustaPaga)  *  INDEX(Impiegati[Paga lorda],BustaPaga),\"\")","v":12.236000000000001},null,"Ore straordinario",null,{"$f":"IFERROR(INDEX(Impiegati[Ore straordinario],BustaPaga),\"\")","v":0}]
[null,null,"Trattenute assicurative",null,{"$f":"IFERROR(INDEX(Impiegati[Trattenute assicurative],BustaPaga),\"\")","v":18},null,"Altre trattenute regolari",null,{"$f":"IFERROR(INDEX(Impiegati[Altre trattenute regolari],BustaPaga),\"\")","v":20},null,"Paga lorda",null,{"$f":"IFERROR(INDEX(Impiegati[Paga lorda],BustaPaga),\"\")","v":532}]
[null,null,"Totale imposte e",null,{"$f":"IFERROR(INDEX(Impiegati[Imposte e trattenute],BustaPaga),\"\")","v":240.42600000000004},null,"Altre trattenute",null,{"$f":"IFERROR(INDEX(Impiegati[Altre tratt.],BustaPaga),\"\")","v":0},null,"Totale imposte e trattenute ",null,{"$f":"IFERROR(INDEX(Impiegati[Imposte e trattenute],BustaPaga)  +  INDEX(Impiegati[Altre tratt.],BustaPaga),\"\")","v":240.42600000000004}]
[null,null,"trattenute regolari "]
[null,null,null,null,null,null,null,null,null,null,"Importo netto corrisposto",null,{"$f":"IFERROR(INDEX(Impiegati[Importo netto corrisposto],BustaPaga),\"\")","v":291.57399999999996}]
[]
[]
[null,null,{"$f":"NomeSocietà","v":"ADVENTURE WORKS"}]
[null,null,"PERIODO",{"$f":"FinePeriodo","v":41372},null,null,"NOME",{"$f":"IFERROR(INDEX(Impiegati[Nome dell''impiegato],BustaPaga),\"\")","v":"Sebastien Motte"},null,null,"ID IMPIEGATO",{"$f":"IFERROR(INDEX(Impiegati[ID],BustaPaga),\"\")","v":1008}]
[null,null,"Stato fiscale",null,{"$f":"IFERROR(INDEX(Impiegati[Stato fiscale],BustaPaga),\"\")","v":1},null,"Benefici federali (da W-4)",null,{"$f":"IFERROR(INDEX(Impiegati[Benefici federali],BustaPaga),\"\")","v":0},null,"Ore lavorate",null,{"$f":"IFERROR(INDEX(Impiegati[Ore regolari lavorate],BustaPaga),\"\")","v":50}]
[null,null,"Tariffa oraria",null,{"$f":"IFERROR(INDEX(Impiegati[Paga oraria],BustaPaga),\"\")","v":20},null,"Tariffa straordinario",null,{"$f":"IFERROR(INDEX(Impiegati[Tariffa straordinario],BustaPaga),\"\")","v":0},null,"Ore di permesso malattia",null,{"$f":"IFERROR(INDEX(Impiegati[Ore di permesso malattia],BustaPaga),\"\")","v":1}]
[null,null,"Ritenute previdenziali",null,{"$f":"IFERROR(INDEX(Impiegati[Ritenute previdenziali],BustaPaga)  *  INDEX(Impiegati[Paga lorda],BustaPaga),\"\")","v":70.56},null,"Imposte federali sul reddito ",null,{"$f":"IFERROR(INDEX(Impiegati[Imposte federali sul reddito],BustaPaga)  *  INDEX(Impiegati[Paga lorda],BustaPaga),\"\")","v":313.60000000000002},null,"Ore di permesso ferie",null,{"$f":"IFERROR(INDEX(Impiegati[Ore di permesso ferie],BustaPaga),\"\")","v":5}]
[null,null,"Imposta per l'assicurazione medica ",null,{"$f":"IFERROR(INDEX(Impiegati[Imposta per l''assicurazione medica],BustaPaga)  *  INDEX(Impiegati[Paga lorda],BustaPaga),\"\")","v":16.240000000000002},null,"Imposta statale ",null,{"$f":"IFERROR(INDEX(Impiegati[Imposta statale],BustaPaga)  *  INDEX(Impiegati[Paga lorda],BustaPaga),\"\")","v":25.759999999999998},null,"Ore straordinario",null,{"$f":"IFERROR(INDEX(Impiegati[Ore straordinario],BustaPaga),\"\")","v":0}]
[null,null,"Trattenute assicurative",null,{"$f":"IFERROR(INDEX(Impiegati[Trattenute assicurative],BustaPaga),\"\")","v":15},null,"Altre trattenute regolari",null,{"$f":"IFERROR(INDEX(Impiegati[Altre trattenute regolari],BustaPaga),\"\")","v":0},null,"Paga lorda",null,{"$f":"IFERROR(INDEX(Impiegati[Paga lorda],BustaPaga),\"\")","v":1120}]
[null,null,"Totale imposte e",null,{"$f":"IFERROR(INDEX(Impiegati[Imposte e trattenute],BustaPaga),\"\")","v":441.16000000000008},null,"Altre trattenute",null,{"$f":"IFERROR(INDEX(Impiegati[Altre tratt.],BustaPaga),\"\")","v":0},null,"Totale imposte e trattenute ",null,{"$f":"IFERROR(INDEX(Impiegati[Imposte e trattenute],BustaPaga)  +  INDEX(Impiegati[Altre tratt.],BustaPaga),\"\")","v":441.16000000000008}]
[null,null,"trattenute regolari "]
[null,null,null,null,null,null,null,null,null,null,"Importo netto corrisposto",null,{"$f":"IFERROR(INDEX(Impiegati[Importo netto corrisposto],BustaPaga),\"\")","v":678.83999999999992}]